[Event "African Games-chT 2019"]
[Site "Casablanca"]
[Date "2019.08.24"]
[Round "3.17"]
[White "Aderito, Pedro"]
[Black "Adu, Oladapo"]
[Result "0-1"]
[ECO "B51"]
[WhiteElo "2301"]
[BlackElo "2273"]
[Annotator "NA"]
[PlyCount "180"]
[EventDate "2019.08.24"]
[EventType "team-tourn"]
[EventCountry "MAR"]
[SourceTitle "playchess.com"]
[Source "ChessBase"]
[SourceQuality "1"]
[WhiteTeam "Angola"]
[BlackTeam "Nigeria"]
[WhiteTeamCountry "ANG"]
[BlackTeamCountry "NGR"]
[TimeControl "900+10"]

1. e4 {[%emt 0:00:00]} c5 {[%emt 0:00:00]} 2. Nf3 {[%emt 0:00:00]} d6 {[%emt 0:00:07]} 3. Bb5+ {[%emt 0:00:10]} Nd7 {[%emt 0:00:14]} 4. O-O {[%emt 0:00:41]} Ngf6 {[%emt 0:00:09]} 5. Re1 {[%emt 0:00:06]} e6 {[%emt 0:00:04]} 6. c3 {[%emt 0:00:44]} a6 {[%emt 0:00:17]} 7. Bf1 {[%emt 0:00:03]} b6 {[%emt 0:00:30]} 8. d4 {[%emt 0:00:13]} Be7 {[%emt 0:00:12]} 9. e5 {[%emt 0:00:14]} dxe5 {[%emt 0:00:07]} 10. dxe5 {[%emt 0:00:03]} Nd5 {[%emt 0:00:04]} 11. a4 {[%emt 0:00:52]} Bb7 {[%emt 0:00:19]} 12. Na3 {[%emt 0:00:07]} Qc7 {[%emt 0:00:14]} 13. Bd3 {[%emt 0:00:10]} h6 {[%emt 0:01:04]} 14. Qe2 {[%emt 0:02:29]} Qc6 {[%emt 0:00:22]} 15. Nc4 {[%emt 0:00:34]} Qc7 {[%emt 0:00:37]} 16. h4 {[%emt 0:01:47]} Rd8 {[%emt 0:01:56]} 17. Bd2 {[%emt 0:01:59]} Nb8 {[%emt 0:00:14]} 18. h5 {[%emt 0:00:20]} Nc6 {[%emt 0:00:02]} 19. Qe4 {[%emt 0:01:01]} Nxc3 {[%emt 0:02:11]} 20. Bxc3 {[%emt 0:01:07]} Nb4 {[%emt 0:00:02]} 21. Nd6+ {[%emt 0:00:13]} Bxd6 {[%emt 0:00:40]} 22. exd6 {[%emt 0:00:02]} Rxd6 {[%emt 0:00:16]} 23. Qg4 {[%emt 0:01:47]} Nxd3 {[%emt 0:02:43]} 24. Qxg7 {[%emt 0:00:11]} Rf8 {[%emt 0:00:01]} 25. Re3 {[%emt 0:00:23]} Qc6 {[%emt 0:01:28]} 26. Qxh6 {[%emt 0:01:09]} c4 {[%emt 0:00:24]} 27. Qg7 {[%emt 0:00:08]} Rd7 {[%emt 0:02:30]} 28. Bf6 {[%emt 0:00:11]} Nf4 {[%emt 0:00:34]} 29. Ne5 {[%emt 0:00:53]} Nxh5 {[%emt 0:00:43]} 30. Qxf8+ {[%emt 0:00:36]} Kxf8 {[%emt 0:00:07]} 31. Nxc6 {[%emt 0:00:03]} Nxf6 {[%emt 0:00:17]} 32. Ne5 {[%emt 0:00:03]} Rd2 {[%emt 0:00:02]} 33. Nxc4 {[%emt 0:00:03]} Rc2 {[%emt 0:00:12]} 34. Rc3 {[%emt 0:00:12]} Re2 {[%emt 0:00:06]} 35. Kf1 {[%emt 0:00:49]} Re4 {[%emt 0:00:01]} 36. f3 {[%emt 0:01:11]} Rh4 {[%emt 0:00:06]} 37. Kf2 {[%emt 0:00:02]} Nd5 {[%emt 0:00:06]} 38. Rcc1 {[%emt 0:00:08]} Rd4 {[%emt 0:00:10]} 39. Nd6 {[%emt 0:00:11]} Ba8 {[%emt 0:00:15]} 40. Rc8+ {[%emt 0:00:02]} Ke7 {[%emt 0:00:00]} 41. Rxa8 {[%emt 0:00:04]} Kxd6 {[%emt 0:00:01]} 42. Rxa6 {[%emt 0:00:07]} Kc6 {[%emt 0:00:12]} 43. Rc1+ {[%emt 0:00:02]} Kb7 {[%emt 0:00:04]} 44. Rxb6+ {[%emt 0:00:30]} Kxb6 {[%emt 0:00:04]} 45. b3 {[%emt 0:00:06]} Rb4 {[%emt 0:00:07]} 46. Rb1 {[%emt 0:00:11]} Nc3 {[%emt 0:00:02]} 47. Rh1 {[%emt 0:00:11]} Rxb3 {[%emt 0:00:03]} 48. Rh7 {[%emt 0:00:02]} f6 {[%emt 0:00:04]} 49. Rf7 {[%emt 0:00:03]} Nd5 {[%emt 0:00:02]} 50. g4 {[%emt 0:00:05]} Kc6 {[%emt 0:00:01]} 51. Ra7 {[%emt 0:00:22]} Kd6 {[%emt 0:00:05]} 52. a5 {[%emt 0:00:20]} Ra3 {[%emt 0:00:01]} 53. Kg3 {[%emt 0:00:04]} Nb4 {[%emt 0:00:11]} 54. Rf7 {[%emt 0:00:07]} Ke5 {[%emt 0:00:03]} 55. Rb7 {[%emt 0:00:32]} Nd5 {[%emt 0:00:10]} 56. Rb5 {[%emt 0:00:05]} Kd6 {[%emt 0:00:15]} 57. Rb8 {[%emt 0:00:30]} Rxa5 {[%emt 0:00:06]} 58. Rg8 {[%emt 0:00:05]} Ra3 {[%emt 0:00:04]} 59. g5 {[%emt 0:00:04]} fxg5 {[%emt 0:00:10]} 60. Rxg5 {[%emt 0:00:01]} Ne7 {[%emt 0:00:03]} 61. Rb5 {[%emt 0:00:05]} Nd5 {[%emt 0:00:04]} 62. Rb8 {[%emt 0:00:05]} Ke5 {[%emt 0:00:02]} 63. Rb5 {[%emt 0:00:04]} Ra7 {[%emt 0:00:02]} 64. Rc5 {[%emt 0:00:04]} Rg7+ {[%emt 0:00:03]} 65. Kf2 {[%emt 0:00:01]} Kd4 {[%emt 0:00:10]} 66. Ra5 {[%emt 0:00:06]} Ke5 {[%emt 0:00:23]} 67. Rc5 {[%emt 0:00:06]} Kf5 {[%emt 0:00:04]} 68. Ra5 {[%emt 0:00:05]} Rc7 {[%emt 0:00:07]} 69. Kg3 {[%emt 0:00:03]} Rc2 {[%emt 0:00:02]} 70. Rb5 {[%emt 0:00:02]} Rd2 {[%emt 0:00:03]} 71. Ra5 {[%emt 0:00:04]} e5 {[%emt 0:00:03]} 72. Ra8 {[%emt 0:00:06]} Nf4 {[%emt 0:00:02]} 73. Rf8+ {[%emt 0:00:04]} Kg5 {[%emt 0:00:02]} 74. Rg8+ {[%emt 0:00:01]} Ng6 {[%emt 0:00:05]} 75. Rb8 {[%emt 0:00:36]} Ne7 {[%emt 0:00:05]} 76. Re8 {[%emt 0:00:27]} Nf5+ {[%emt 0:00:06]} 77. Kh3 {[%emt 0:00:02]} Kf4 {[%emt 0:00:10]} 78. Rf8 {[%emt 0:00:09]} Rf2 {[%emt 0:00:10]} 79. Rf7 {[%emt 0:00:32]} Rxf3+ {[%emt 0:00:03]} 80. Kg2 {[%emt 0:00:02]} e4 {[%emt 0:00:03]} 81. Rf8 {[%emt 0:00:04]} Ke3 {[%emt 0:00:07]} 82. Rb8 {[%emt 0:00:04]} Nh4+ {[%emt 0:00:02]} 83. Kg1 {[%emt 0:00:03]} Ng6 {[%emt 0:00:07]} 84. Rb6 {[%emt 0:00:06]} Ne5 {[%emt 0:00:04]} 85. Rb3+ {[%emt 0:01:04]} Nd3 {[%emt 0:00:02]} 86. Kg2 {[%emt 0:00:06]} Rf7 {[%emt 0:00:04]} 87. Ra3 {[%emt 0:00:02]} Kf4 {[%emt 0:00:20]} 88. Ra1 {[%emt 0:00:15]} Rg7+ {[%emt 0:00:06]} 89. Kf1 {[%emt 0:00:03]} Kf3 {[%emt 0:00:05]} 90. Ra8 {[%emt 0:00:09]} Rb7 {[%emt 0:00:04] Ke1} 0-1

[Event "African Games-chT 2019"]
[Site "Casablanca"]
[Date "2019.08.24"]
[Round "3.18"]
[White "Osunfuyi, Abimbola"]
[Black "Silva, David"]
[Result "1/2-1/2"]
[ECO "A49"]
[WhiteElo "2235"]
[BlackElo "2239"]
[Annotator "NA"]
[PlyCount "215"]
[EventDate "2019.08.24"]
[EventType "team-tourn"]
[EventCountry "MAR"]
[SourceTitle "playchess.com"]
[Source "ChessBase"]
[SourceQuality "1"]
[WhiteTeam "Nigeria"]
[BlackTeam "Angola"]
[WhiteTeamCountry "NGR"]
[BlackTeamCountry "ANG"]
[TimeControl "900+10"]

1. d4 {[%emt 0:00:00]} Nf6 {[%emt 0:00:00]} 2. Nf3 {[%emt 0:00:00]} g6 {[%emt 0:02:16]} 3. g3 {[%emt 0:00:00]} Bg7 {[%emt 0:00:01]} 4. Bg2 {[%emt 0:00:00]} O-O {[%emt 0:00:03]} 5. O-O {[%emt 0:00:00]} d6 {[%emt 0:00:01]} 6. b3 {[%emt 0:00:00]} Nbd7 {[%emt 0:00:14]} 7. Bb2 {[%emt 0:00:00]} e5 {[%emt 0:00:03]} 8. c4 {[%emt 0:00:41]} e4 {[%emt 0:00:14]} 9. Ng5 {[%emt 0:01:00]} e3 {[%emt 0:00:06]} 10. f4 {[%emt 0:00:28]} Nb6 {[%emt 0:00:04]} 11. Nc3 {[%emt 0:00:08]} c6 {[%emt 0:00:06]} 12. a4 {[%emt 0:00:07]} h6 {[%emt 0:00:11]} 13. Nge4 {[%emt 0:00:37]} Nxe4 {[%emt 0:00:04]} 14. Bxe4 {[%emt 0:00:04]} Bh3 {[%emt 0:00:24]} 15. Bg2 {[%emt 0:00:40]} Bxg2 {[%emt 0:00:13]} 16. Kxg2 {[%emt 0:00:02]} Re8 {[%emt 0:00:41]} 17. Qd3 {[%emt 0:00:04]} d5 {[%emt 0:00:54]} 18. c5 {[%emt 0:00:07]} Nd7 {[%emt 0:00:02]} 19. Rf3 {[%emt 0:01:29]} b6 {[%emt 0:00:37]} 20. cxb6 {[%emt 0:00:26]} Qxb6 {[%emt 0:00:14]} 21. Nd1 {[%emt 0:00:30]} Rab8 {[%emt 0:00:05]} 22. Rc1 {[%emt 0:00:04]} Qxb3 {[%emt 0:00:37]} 23. Qxb3 {[%emt 0:01:31]} Rxb3 {[%emt 0:00:02]} 24. Rxc6 {[%emt 0:00:32]} Nb6 {[%emt 0:00:02]} 25. a5 {[%emt 0:00:51]} Nc4 {[%emt 0:00:01]} 26. Bc3 {[%emt 0:00:51]} Rb1 {[%emt 0:00:11]} 27. Rf1 {[%emt 0:00:05]} Rc1 {[%emt 0:00:12]} 28. a6 {[%emt 0:01:07]} Nd2 {[%emt 0:00:06]} 29. Rg1 {[%emt 0:01:04]} Bxd4 {[%emt 0:00:46]} 30. Rxg6+ {[%emt 0:00:53]} fxg6 {[%emt 0:00:04]} 31. Bxd4 {[%emt 0:00:01]} Nc4 {[%emt 0:00:27]} 32. Bxa7 {[%emt 0:00:27]} Ra1 {[%emt 0:00:07]} 33. Bd4 {[%emt 0:00:05]} Rxa6 {[%emt 0:00:02]} 34. Nc3 {[%emt 0:00:09]} Nd2 {[%emt 0:00:37]} 35. g4 {[%emt 0:00:24]} Rc6 36. Rd1 {[%emt 0:01:07]} Rc4 {[%emt 0:02:25]} 37. Nb5 {[%emt 0:00:17]} Rc2 {[%emt 0:01:50]} 38. Nd6 {[%emt 0:00:19]} Re6 {[%emt 0:02:24]} 39. Be5 {[%emt 0:00:16]} Rxd6 {[%emt 0:00:03]} 40. Bxd6 {[%emt 0:00:08]} Nc4 {[%emt 0:00:01]} 41. Rxd5 {[%emt 0:00:36]} Rxe2+ {[%emt 0:00:02]} 42. Kf3 {[%emt 0:01:07]} Rd2 {[%emt 0:00:02]} 43. Rc5 {[%emt 0:00:13]} Rf2+ {[%emt 0:00:19]} 44. Ke4 {[%emt 0:00:34]} Nxd6+ {[%emt 0:02:04]} 45. Kxe3 {[%emt 0:00:08]} Rd2 {[%emt 0:00:13]} 46. h4 {[%emt 0:00:59]} Rd1 {[%emt 0:00:05]} 47. h5 {[%emt 0:00:11]} gxh5 {[%emt 0:00:32]} 48. Rxh5 {[%emt 0:00:06]} Kg7 {[%emt 0:00:09]} 49. g5 {[%emt 0:00:16]} Nf5+ {[%emt 0:00:02]} 50. Ke2 {[%emt 0:00:11]} Rd6 {[%emt 0:00:35]} 51. gxh6+ {[%emt 0:00:03]} Nxh6 {[%emt 0:00:02]} 52. Kf3 {[%emt 0:00:09]} Kg6 {[%emt 0:00:02]} 53. Rg5+ {[%emt 0:00:03]} Kf6 {[%emt 0:00:02]} 54. Ra5 {[%emt 0:00:05]} Nf5 {[%emt 0:00:02]} 55. Ke4 {[%emt 0:00:08]} Rd4+ {[%emt 0:00:03]} 56. Kf3 {[%emt 0:00:02]} Nd6 {[%emt 0:00:04]} 57. Re5 {[%emt 0:00:07]} Nc4 {[%emt 0:00:06]} 58. Rc5 {[%emt 0:00:12]} Nd6 {[%emt 0:00:08]} 59. Re5 {[%emt 0:00:11]} Rd1 {[%emt 0:00:03]} 60. Rc5 {[%emt 0:00:08]} Rf1+ {[%emt 0:00:03]} 61. Kg4 {[%emt 0:00:06]} Rd1 {[%emt 0:00:14]} 62. Kf3 {[%emt 0:00:10]} Rf1+ {[%emt 0:02:57]} 63. Kg4 {[%emt 0:00:03]} Rg1+ {[%emt 0:00:05]} 64. Kf3 {[%emt 0:00:03]} Nf5 {[%emt 0:00:02]} 65. Rc6+ {[%emt 0:00:09]} Ke7 {[%emt 0:00:03]} 66. Ke4 {[%emt 0:00:12]} Nd6+ {[%emt 0:00:04]} 67. Kd5 {[%emt 0:00:08]} Rd1+ {[%emt 0:00:02]} 68. Ke5 {[%emt 0:00:06]} Re1+ {[%emt 0:00:02]} 69. Kd5 {[%emt 0:00:01]} Nf5 {[%emt 0:00:03]} 70. Ra6 {[%emt 0:00:23]} Kf7 {[%emt 0:00:02]} 71. Rb6 {[%emt 0:00:13]} Ne7+ {[%emt 0:00:00]} 72. Kd4 {[%emt 0:00:05]} Ng6 {[%emt 0:00:02]} 73. f5 {[%emt 0:00:14]} Ne7 {[%emt 0:00:03]} 74. f6 {[%emt 0:00:15]} Ng8 {[%emt 0:00:02]} 75. Rb7+ {[%emt 0:00:05]} Kxf6 {[%emt 0:00:02]} 76. Rb6+ {[%emt 0:00:01]} Kf7 {[%emt 0:00:02]} 77. Rb3 {[%emt 0:00:03]} Ne7 {[%emt 0:00:01]} 78. Rf3+ {[%emt 0:00:03]} Kg6 {[%emt 0:00:04]} 79. Rg3+ {[%emt 0:00:09]} Kf6 {[%emt 0:00:01]} 80. Rf3+ {[%emt 0:00:04]} Nf5+ {[%emt 0:00:02]} 81. Kd3 {[%emt 0:00:01]} Re8 {[%emt 0:00:05]} 82. Rf4 {[%emt 0:00:05]} Re3+ {[%emt 0:00:05]} 83. Kd2 {[%emt 0:00:02]} Rh3 {[%emt 0:00:01]} 84. Ra4 {[%emt 0:00:07]} Nd6 {[%emt 0:00:01]} 85. Ke2 {[%emt 0:00:04]} Kf5 {[%emt 0:00:03]} 86. Ra5+ {[%emt 0:00:15]} Kf4 {[%emt 0:00:01]} 87. Ra8 {[%emt 0:00:04]} Ke4 {[%emt 0:00:06]} 88. Rd8 {[%emt 0:00:07]} Nc4 {[%emt 0:00:03]} 89. Re8+ {[%emt 0:00:08]} Ne5 {[%emt 0:00:01]} 90. Ra8 {[%emt 0:00:07]} Rh2+ {[%emt 0:00:02]} 91. Kf1 {[%emt 0:00:03]} Kf4 {[%emt 0:00:05]} 92. Ra7 {[%emt 0:00:58]} Ng4 {[%emt 0:00:31]} 93. Rf7+ {[%emt 0:00:35]} Kg3 {[%emt 0:00:05]} 94. Rg7 {[%emt 0:00:21]} Rb2 {[%emt 0:00:02]} 95. Ke1 {[%emt 0:00:15]} Kf3 {[%emt 0:00:25]} 96. Rf7+ {[%emt 0:00:11]} Ke4 {[%emt 0:00:02]} 97. Rh7 {[%emt 0:00:40]} Nf2 {[%emt 0:00:26]} 98. Re7+ {[%emt 0:00:26]} Kf3 {[%emt 0:00:03]} 99. Rf7+ {[%emt 0:00:13]} Ke3 {[%emt 0:00:02]} 100. Kf1 {[%emt 0:00:19]} Nd3 {[%emt 0:00:02]} 101. Re7+ {[%emt 0:00:15]} Kf3 {[%emt 0:00:03]} 102. Kg1 {[%emt 0:00:21]} Nf4 {[%emt 0:00:07]} 103. Rf7 {[%emt 0:00:24]} Rb6 {[%emt 0:00:40]} 104. Rf8 {[%emt 0:00:32]} Rb1+ {[%emt 0:00:55]} 105. Kh2 {[%emt 0:00:07]} Rf1 {[%emt 0:00:01]} 106. Rf7 {[%emt 0:00:20]} Rf2+ {[%emt 0:00:38]} 107. Kg1 {[%emt 0:00:09]} Rd2 {[%emt 0:00:07]} 108. Rf8 {[%emt 0:00:08]} 1/2-1/2

[Event "African Games-chT 2019"]
[Site "Casablanca"]
[Date "2019.08.24"]
[Round "3.20"]
[White "Ofowino, Toritsemuwa"]
[Black "Pires, Luzia"]
[Result "1-0"]
[ECO "D00"]
[WhiteElo "1877"]
[BlackElo "1924"]
[Annotator "NA"]
[PlyCount "111"]
[EventDate "2019.08.24"]
[EventType "team-tourn"]
[EventCountry "MAR"]
[SourceTitle "playchess.com"]
[Source "ChessBase"]
[SourceQuality "1"]
[WhiteTeam "Nigeria"]
[BlackTeam "Angola"]
[WhiteTeamCountry "NGR"]
[BlackTeamCountry "ANG"]
[TimeControl "900+10"]

1. d4 {[%emt 0:00:00]} d5 {[%emt 0:00:00]} 2. Bf4 {[%emt 0:00:00]} e6 {[%emt 0:00:05]} 3. Nf3 {[%emt 0:00:00]} Nf6 {[%emt 0:00:09]} 4. e3 {[%emt 0:00:01]} Be7 {[%emt 0:00:10]} 5. Bd3 {[%emt 0:00:07]} O-O {[%emt 0:00:15]} 6. Nbd2 {[%emt 0:00:02]} c5 {[%emt 0:00:12]} 7. c3 {[%emt 0:00:03]} h6 {[%emt 0:00:03]} 8. O-O {[%emt 0:00:29]} b6 {[%emt 0:00:16]} 9. e4 {[%emt 0:00:33]} dxe4 {[%emt 0:00:35]} 10. Nxe4 {[%emt 0:00:02]} Nbd7 {[%emt 0:00:38]} 11. dxc5 {[%emt 0:01:06]} Nxc5 {[%emt 0:00:17]} 12. Nxc5 {[%emt 0:00:03]} Bxc5 {[%emt 0:00:06]} 13. Qe2 {[%emt 0:00:03]} Bb7 {[%emt 0:00:07]} 14. Rad1 {[%emt 0:00:05]} Qe7 {[%emt 0:00:20]} 15. b4 {[%emt 0:00:13]} Bxf3 {[%emt 0:00:13]} 16. Qxf3 {[%emt 0:00:03]} e5 {[%emt 0:00:00]} 17. bxc5 {[%emt 0:02:00]} exf4 {[%emt 0:00:08]} 18. cxb6 {[%emt 0:00:02]} axb6 {[%emt 0:00:10]} 19. Bb1 {[%emt 0:00:02]} Qe5 {[%emt 0:00:14]} 20. Rfe1 {[%emt 0:00:15]} Qg5 {[%emt 0:00:03]} 21. Rd4 {[%emt 0:00:25]} Rfe8 {[%emt 0:00:25]} 22. Red1 {[%emt 0:00:10]} Qe5 {[%emt 0:00:41]} 23. h3 {[%emt 0:00:05]} g5 {[%emt 0:00:26]} 24. Qc6 {[%emt 0:03:44]} Rab8 {[%emt 0:01:52]} 25. Qd6 {[%emt 0:03:06]} Qxd6 {[%emt 0:01:56]} 26. Rxd6 {[%emt 0:00:01]} Kg7 {[%emt 0:01:39]} 27. Kf1 {[%emt 0:00:27]} Re7 {[%emt 0:00:18]} 28. Rc6 {[%emt 0:00:24]} b5 {[%emt 0:00:59]} 29. Rc5 {[%emt 0:01:04]} b4 {[%emt 0:01:37]} 30. cxb4 {[%emt 0:00:53]} Rxb4 {[%emt 0:00:01]} 31. Rcc1 {[%emt 0:00:18]} Rb2 {[%emt 0:00:13]} 32. Rc2 {[%emt 0:00:07]} Rb4 {[%emt 0:00:33]} 33. Rcd2 {[%emt 0:00:19]} Reb7 {[%emt 0:00:35]} 34. Bc2 {[%emt 0:00:07]} Ra7 {[%emt 0:00:39]} 35. Bb3 {[%emt 0:00:06]} Re7 {[%emt 0:00:02]} 36. Re1 {[%emt 0:00:31]} Rc7 {[%emt 0:00:38]} 37. Rde2 {[%emt 0:00:03]} Rbb7 {[%emt 0:00:19]} 38. Rd1 {[%emt 0:00:23]} Ra7 {[%emt 0:00:50]} 39. Re5 {[%emt 0:00:07]} Re7 {[%emt 0:00:13]} 40. Rxe7 {[%emt 0:00:24]} Rxe7 {[%emt 0:00:01]} 41. Re1 {[%emt 0:00:01]} Ne4 {[%emt 0:00:55]} 42. f3 {[%emt 0:00:28]} Nd2+ 43. Kf2 Rxe1 {[%emt 0:01:38]} 44. Kxe1 {[%emt 0:00:02]} Nb1 {[%emt 0:00:08]} 45. Kd1 {[%emt 0:00:22]} Na3 {[%emt 0:00:03]} 46. Kd2 {[%emt 0:00:01]} Kf6 {[%emt 0:00:02]} 47. Kc3 {[%emt 0:00:01]} Ke7 {[%emt 0:00:02]} 48. Kb4 {[%emt 0:00:02]} Nb1 {[%emt 0:00:04]} 49. a4 {[%emt 0:00:13]} f6 {[%emt 0:00:08]} 50. a5 {[%emt 0:00:12]} Kd7 {[%emt 0:00:01]} 51. Kc5 {[%emt 0:00:01]} Kc7 {[%emt 0:00:01]} 52. Bd5 {[%emt 0:00:05]} Nc3 {[%emt 0:00:28]} 53. Bc4 {[%emt 0:00:34]} Kb7 {[%emt 0:01:15]} 54. Kd6 {[%emt 0:00:18]} Nd1 {[%emt 0:00:22]} 55. Ke7 {[%emt 0:00:40]} Ne3 {[%emt 0:00:07]} 56. Be6 {[%emt 0:00:01]} 1-0

[Event "African Games-chT 2019"]
[Site "Casablanca"]
[Date "2019.08.24"]
[Round "3.21"]
[White "Rita, Jeorciley"]
[Black "Amba, Oyon Marius Claude"]
[Result "0-1"]
[ECO "A46"]
[WhiteElo "1920"]
[BlackElo "1911"]
[Annotator "NA"]
[PlyCount "64"]
[EventDate "2019.08.24"]
[EventType "team-tourn"]
[EventCountry "MAR"]
[SourceTitle "playchess.com"]
[Source "ChessBase"]
[SourceQuality "1"]
[WhiteTeam "STP"]
[BlackTeam "CMR"]
[TimeControl "900+10"]

1. d4 {[%emt 0:00:00]} Nf6 {[%emt 0:00:00]} 2. Nf3 {[%emt 0:00:00]} c5 {[%emt 0:00:00]} 3. Bf4 {[%emt 0:00:06]} cxd4 {[%emt 0:00:05]} 4. Nxd4 {[%emt 0:00:36]} a6 {[%emt 0:00:53]} 5. c3 {[%emt 0:00:13]} Nc6 {[%emt 0:00:15]} 6. Nxc6 {[%emt 0:00:08]} bxc6 {[%emt 0:00:01]} 7. Nd2 {[%emt 0:00:39]} Qb6 {[%emt 0:00:16]} 8. Qc2 {[%emt 0:00:10]} d5 {[%emt 0:00:18]} 9. e3 {[%emt 0:00:18]} Nh5 {[%emt 0:00:23]} 10. Bg3 {[%emt 0:00:04]} g6 {[%emt 0:01:21]} 11. Be2 {[%emt 0:00:05]} Nxg3 {[%emt 0:00:03]} 12. hxg3 {[%emt 0:00:02]} Bg7 {[%emt 0:00:01]} 13. Nf3 {[%emt 0:00:35]} Rb8 {[%emt 0:00:06]} 14. O-O-O {[%emt 0:00:51]} e5 {[%emt 0:00:12]} 15. Ng5 {[%emt 0:00:32]} h6 {[%emt 0:00:17]} 16. Nh3 {[%emt 0:00:38]} Bf5 {[%emt 0:00:06]} 17. Bd3 {[%emt 0:00:02]} Bg4 {[%emt 0:00:24]} 18. f3 {[%emt 0:00:12]} Qxe3+ {[%emt 0:00:06]} 19. Kb1 {[%emt 0:00:04]} Be6 {[%emt 0:00:40]} 20. g4 {[%emt 0:07:28]} O-O {[%emt 0:01:11]} 21. Bxa6 {[%emt 0:01:37]} Qa7 {[%emt 0:00:50]} 22. Be2 {[%emt 0:00:29]} d4 {[%emt 0:00:14]} 23. c4 {[%emt 0:00:06]} d3 {[%emt 0:00:10]} 24. Rxd3 {[%emt 0:00:10]} e4 {[%emt 0:00:02]} 25. Rb3 {[%emt 0:00:02]} exf3 {[%emt 0:00:12]} 26. gxf3 {[%emt 0:00:29]} Rxb3 {[%emt 0:00:22]} 27. axb3 {[%emt 0:00:34]} Ra8 {[%emt 0:00:02]} 28. Qc1 {[%emt 0:00:39]} h5 {[%emt 0:00:46]} 29. Nf4 {[%emt 0:00:06]} Bh6 {[%emt 0:00:35]} 30. Kc2 {[%emt 0:00:03]} Qb8 {[%emt 0:00:24]} 31. g5 {[%emt 0:01:18]} Bxg5 {[%emt 0:00:09]} 32. Rh4 {[%emt 0:00:06]} Bf5+ {[%emt 0:00:07]} 0-1

[Event "African Games-chT 2019"]
[Site "Casablanca"]
[Date "2019.08.24"]
[Round "3.22"]
[White "Ebosse, Kingue Victor Patric"]
[Black "Espirito Santo, Waldyr"]
[Result "1-0"]
[ECO "C65"]
[WhiteElo "2055"]
[BlackElo "1923"]
[Annotator "NA"]
[PlyCount "59"]
[EventDate "2019.08.24"]
[EventType "team-tourn"]
[EventCountry "MAR"]
[SourceTitle "playchess.com"]
[Source "ChessBase"]
[SourceQuality "1"]
[WhiteTeam "CMR"]
[BlackTeam "STP"]
[TimeControl "900+10"]

1. e4 {[%emt 0:00:00]} e5 {[%emt 0:00:00]} 2. Nf3 {[%emt 0:00:00]} Nc6 {[%emt 0:00:00]} 3. Bb5 {[%emt 0:00:00]} Nf6 {[%emt 0:00:03]} 4. d3 {[%emt 0:00:00]} d6 {[%emt 0:00:10]} 5. O-O {[%emt 0:00:00]} Bd7 {[%emt 0:00:05]} 6. c3 {[%emt 0:00:02]} Be7 {[%emt 0:00:05]} 7. Re1 {[%emt 0:00:02]} O-O {[%emt 0:00:05]} 8. Nbd2 {[%emt 0:00:02]} a6 {[%emt 0:00:05]} 9. Ba4 {[%emt 0:00:00]} b5 {[%emt 0:00:02]} 10. Bc2 {[%emt 0:00:01]} Bg4 {[%emt 0:00:27]} 11. h3 {[%emt 0:00:01]} Bh5 {[%emt 0:00:02]} 12. Nf1 {[%emt 0:00:00]} Na5 {[%emt 0:00:11]} 13. Ng3 {[%emt 0:00:02]} Bg6 {[%emt 0:00:02]} 14. Nh4 {[%emt 0:00:04]} Re8 {[%emt 0:00:30]} 15. Nhf5 {[%emt 0:00:02]} Bf8 {[%emt 0:00:04]} 16. Qf3 {[%emt 0:00:20]} c5 {[%emt 0:00:09]} 17. Bg5 {[%emt 0:00:07]} Nc6 {[%emt 0:00:20]} 18. Rad1 {[%emt 0:00:08]} Rc8 {[%emt 0:00:09]} 19. h4 {[%emt 0:00:18]} h6 {[%emt 0:00:09]} 20. Nxh6+ {[%emt 0:00:07]} Kh7 {[%emt 0:00:27]} 21. Ng4 {[%emt 0:00:19]} Be7 {[%emt 0:00:30]} 22. Bxf6 {[%emt 0:00:29]} Kg8 {[%emt 0:02:44]} 23. Bxe7 {[%emt 0:00:23]} Qxe7 {[%emt 0:00:08]} 24. h5 {[%emt 0:00:15]} Bh7 {[%emt 0:00:07]} 25. h6 {[%emt 0:00:22]} Qg5 {[%emt 0:00:06]} 26. hxg7 {[%emt 0:01:13]} Kxg7 {[%emt 0:00:10]} 27. Nf6 {[%emt 0:01:30]} Rh8 {[%emt 0:00:56]} 28. Nxh7 {[%emt 0:03:22]} Rxh7 {[%emt 0:00:26]} 29. Qf5 {[%emt 0:00:09]} Qd8 {[%emt 0:01:02]} 30. Re3 {[%emt 0:00:35]} 1-0

[Event "African Games-chT 2019"]
[Site "Casablanca"]
[Date "2019.08.24"]
[Round "3.24"]
[White "Caxita, Esperanca"]
[Black "Ogbiyoyo, Perpetual Eloho"]
[Result "1-0"]
[ECO "D10"]
[WhiteElo "1803"]
[BlackElo "1831"]
[Annotator "NA"]
[PlyCount "53"]
[EventDate "2019.08.24"]
[EventType "team-tourn"]
[EventCountry "MAR"]
[SourceTitle "playchess.com"]
[Source "ChessBase"]
[SourceQuality "1"]
[WhiteTeam "Angola"]
[BlackTeam "Nigeria"]
[WhiteTeamCountry "ANG"]
[BlackTeamCountry "NGR"]
[TimeControl "900+10"]

1. d4 {[%emt 0:00:00]} d5 {[%emt 0:00:00]} 2. c4 {[%emt 0:00:00]} c6 {[%emt 0:00:00]} 3. cxd5 {[%emt 0:00:00]} cxd5 {[%emt 0:00:00]} 4. Nf3 {[%emt 0:00:07]} Nc6 {[%emt 0:00:00]} 5. Nc3 {[%emt 0:00:07]} Nf6 {[%emt 0:00:02]} 6. e3 {[%emt 0:00:10]} e6 {[%emt 0:00:03]} 7. a3 {[%emt 0:00:03]} Bd6 {[%emt 0:00:32]} 8. Bd3 {[%emt 0:00:04]} e5 {[%emt 0:00:05]} 9. dxe5 {[%emt 0:00:05]} Bxe5 {[%emt 0:00:06]} 10. Nxe5 {[%emt 0:01:22]} Nxe5 {[%emt 0:00:02]} 11. Bb5+ {[%emt 0:01:07]} Bd7 {[%emt 0:00:12]} 12. Qd4 {[%emt 0:01:20]} Nc6 {[%emt 0:00:24]} 13. Qd3 {[%emt 0:00:39]} a6 {[%emt 0:00:11]} 14. Bxc6 {[%emt 0:00:20]} Bxc6 {[%emt 0:00:03]} 15. O-O {[%emt 0:00:18]} O-O {[%emt 0:00:35]} 16. Re1 {[%emt 0:00:19]} Qc7 {[%emt 0:00:06]} 17. h3 {[%emt 0:00:16]} Rfe8 {[%emt 0:00:03]} 18. Bd2 {[%emt 0:00:56]} Re7 {[%emt 0:00:17]} 19. Re2 {[%emt 0:00:43]} d4 {[%emt 0:00:13]} 20. exd4 {[%emt 0:00:16]} Rxe2 {[%emt 0:00:03]} 21. Qxe2 {[%emt 0:00:03]} Re8 {[%emt 0:00:01]} 22. Qd3 {[%emt 0:01:43]} Be4 {[%emt 0:00:26]} 23. Nxe4 {[%emt 0:00:22]} Nxe4 {[%emt 0:00:07]} 24. Re1 {[%emt 0:00:05]} Qc6 {[%emt 0:00:22]} 25. d5 {[%emt 0:00:41]} Qg6 {[%emt 0:00:08]} 26. f3 {[%emt 0:00:17]} Nc5 {[%emt 0:00:31]} 27. Rxe8# {[%emt 0:00:05]} 1-0